bitfinex/quotes_ETHUSD_20260106
["timestamp","ask_amount","ask_price","bid_price","bid_amount"]
[1767713643215,1.31776808,3286.1,3284.3,1.3295272]
[1767713643515,1.31776808,3286.1,3284.8,3.04425339]
[1767713643819,3.04302842,3286.2,3284.9,0.03044232]
[1767713643999,0.30430284,3286.1,3284.9,0.03044232]
[1767713644206,0.30430284,3286.1,3285.1,3.04402787]
[1767713644513,0.794,3286.3,3285.1,6.1185157]
[1767713644712,1.31776808,3286.9,3285.2,1.3295272]
[1767713645017,0.794,3286.8,3285.2,1.35996674]
[1767713645320,3.04256549,3286.7,3285.3,7.4172513]
[1767713645523,3.04256549,3286.7,3285.4,0.03043769]
[1767713645822,8.22257158,3286.7,3285.5,0.7447689]
[1767713645980,5.18000609,3286.7,3285.5,0.7447689]
[1767713646811,0.002,3286.3,3285.5,0.7447689]
[1767713647116,0.002,3287.1,3285.5,0.7447689]
[1767713647117,0.002,3286.6,3285.7,7.41651018]
[1767713647324,0.002,3287.1,3285.8,1.35996118]
[1767713647479,0.002,3287.1,3285.9,1.04904356]
[1767713648202,0.002,3287.1,3286.0,0.03043213]
[1767713648510,0.002,3287.1,3286.0,1.35995933]
[1767713649013,0.002,3287.1,3286.1,0.79]
[1767713649380,0.002,3287.1,3286.1,3.83312102]
[1767713649583,0.002,3287.1,3286.2,0.82058055]
[1767713650211,0.002,3287.1,3286.2,2.15010775]
[1767713650907,0.002,3287.1,3286.3,1.3295272]
[1767713651828,0.002,3287.1,3286.3,4.37243908]
[1767713652693,0.002,3287.1,3286.2,3.86357081]
[1767713652892,0.002,3287.1,3286.2,0.82058055]
[1767713653131,0.002,3287.1,3286.1,3.83308485]
[1767713653409,0.002,3287.1,3286.2,3.04301723]
[1767713653913,0.002,3287.1,3286.3,3.0429117]
[1767713654413,0.002,3287.1,3286.1,0.79]
[1767713654710,0.002,3287.1,3286.2,0.38331858]
[1767713656389,0.002,3287.1,3286.2,3.42634045]
[1767713657010,0.002,3287.1,3286.2,0.38331858]
[1767713658997,1.31976808,3287.1,3286.2,0.38331858]
[1767713659209,1.31976808,3287.1,3286.0,4.62]
[1767713659418,1.31976808,3287.1,3286.0,3.83]
[1767713659620,0.002,3286.8,3286.0,3.83]
[1767713660118,0.002,3286.8,3286.2,3.04301404]
[1767713660712,0.002,3286.8,3286.1,3.04311879]
[1767713661015,0.002,3286.8,3286.2,0.68731188]
[1767713662217,0.002,3286.8,3286.0,3.83]
[1767713662218,1.31976808,3286.8,3286.0,3.83]
[1767713662393,1.31976808,3286.8,3286.0,5.1595272]
[1767713662394,0.002,3286.8,3286.0,5.1595272]
[1767713662595,1.31976808,3286.8,3286.0,3.83]
[1767713662795,1.31776808,3286.6,3286.0,3.83]
[1767713663024,1.75400144,3286.6,3286.0,3.83]
[1767713663528,0.002,3286.8,3286.0,3.83]
[1767713663817,0.002,3286.8,3286.1,1.3295272]
[1767713665020,0.002,3286.8,3286.2,3.04302842]
[1767713665521,0.002,3287.4,3286.2,3.04302842]
[1767713665522,0.002,3287.4,3286.3,1.34175027]
[1767713665722,0.002,3287.4,3286.4,0.79]
[1767713665910,0.002,3287.4,3286.5,1.57617266]
[1767713667729,0.002,3287.4,3286.6,7.41484332]
[1767713668023,0.002,3287.4,3286.6,4.37218526]
[1767713668725,0.002,3287.4,3286.5,0.21621796]
[1767713669029,1.31976808,3287.4,3285.8,1.3305272]
[1767713669246,0.002,3287.4,3286.5,3.04272735]
[1767713669529,0.002,3287.4,3286.3,3.04292882]
[1767713669699,0.002,3287.4,3286.4,0.30429288]
[1767713670028,0.002,3287.4,3286.2,1.35995748]
[1767713670897,0.002,3287.4,3286.2,1.37218055]
[1767713671098,0.002,3287.4,3286.5,1.3295272]
[1767713671300,4.42424223,3288.0,3286.6,0.82042658]
[1767713671504,1.38082958,3287.9,3286.6,0.79]
[1767713671803,0.002,3288.0,3286.7,6.11555663]
[1767713672113,0.002,3288.0,3286.8,0.69055566]
[1767713672317,0.002,3287.1,3286.8,0.72098038]
[1767713672521,0.002,3288.2,3287.1,1.32694137]
[1767713672694,0.002,3288.5,3287.7,0.01222307]
[1767713672898,6.13580721,3290.8,3287.9,1.33916444]
[1767713672899,3.03930328,3290.3,3287.9,1.33916444]
[1767713673098,3.03989754,3289.6,3288.1,1.32694137]
[1767713673329,1.38282958,3289.9,3288.1,1.32694137]
[1767713673529,1.38282958,3289.3,3288.2,0.79]
[1767713673846,1.38082958,3289.2,3288.2,0.79]
[1767713674023,1.38082958,3289.2,3288.2,3.83117618]
[1767713674325,1.38082958,3289.2,3288.2,0.79]
[1767713674494,0.74633192,3289.1,3288.2,0.79]
[1767713675029,0.74633192,3289.1,3287.0,1.32694137]
[1767713675030,1.38082958,3289.0,3287.0,1.32694137]
[1767713675336,1.38082958,3289.0,3287.3,3.04199225]
[1767713675504,1.38082958,3288.8,3287.1,0.79]
[1767713675829,3.25822338,3288.7,3287.3,6.08400742]
[1767713676019,7.67979338,3288.7,3287.2,3.25376656]
[1767713676219,1.38082958,3288.6,3287.2,0.21169414]
[1767713676436,1.38082958,3288.6,3287.3,0.79]
[1767713677401,3.25822338,3288.7,3287.3,0.8204201]
[1767713677601,3.25822338,3288.7,3287.4,0.71163057]
[1767713677801,6.2989638,3288.7,3287.4,0.71163057]
[1767713678001,1.38082958,3288.6,3286.5,3.04269685]
[1767713678231,1.38082958,3288.6,3286.6,1.32694137]
[1767713678440,1.38082958,3288.6,3287.2,3.04206535]
[1767713678642,1.38082958,3288.6,3287.3,3.04198983]
[1767713678842,1.38082958,3288.6,3287.0,3.07267233]
[1767713679041,1.38082958,3288.4,3287.0,0.30726723]
[1767713679200,1.38082958,3288.4,3287.0,3.04228633]
[1767713679396,1.38082958,3288.4,3286.9,3.0423257]
[1767713679601,1.38082958,3288.4,3287.0,0.79]
[1767713679831,0.76797934,3288.5,3287.0,3.8322491]
[1767713679832,1.38082958,3288.2,3287.0,3.8322491]
[1767713680032,1.38082958,3288.2,3287.0,0.79]
[1767713680237,2.12712955,3288.1,3287.0,3.83227487]
[1767713680424,2.12712955,3288.1,3287.0,0.79]
[1767713680815,2.12712955,3288.1,3287.0,3.8322868]
[1767713682248,4.42211474,3288.1,3287.0,3.8322868]
[1767713683309,1.38082958,3288.1,3287.0,3.8322868]
[1767713683719,1.38082958,3288.1,3287.0,6.8745746]
[1767713683922,1.38082958,3288.1,3287.2,3.0421027]
[1767713684236,3.04099257,3288.4,3287.2,6.0842054]
[1767713684440,3.34508294,3288.4,3287.3,0.61146274]
[1767713685235,3.34508294,3288.4,3287.3,0.61246274]
[1767713686043,1.38082958,3288.3,3287.3,0.61246274]
[1767713686336,1.38082958,3288.3,3287.3,0.001]
[1767713687759,1.38082958,3288.3,3287.3,3.04297143]
[1767713687952,1.38082958,3288.3,3287.3,0.001]
[1767713688548,4.42197732,3288.3,3287.3,0.001]
[1767713689265,7.46312506,3288.3,3287.3,0.001]
[1767713689467,0.30409037,3288.4,3287.3,0.001]
[1767713689468,0.77672154,3288.2,3287.3,0.001]
[1767713689630,3.04092053,3288.5,3287.3,1.35836147]
[1767713689958,4.42175011,3288.5,3287.3,1.35836147]
[1767713690471,4.42175011,3288.5,3287.4,3.04191762]
[1767713690632,4.42175011,3288.5,3287.4,3.07233679]
[1767713690835,7.46267064,3288.5,3287.4,3.07233679]
[1767713691141,0.74626706,3288.4,3287.4,3.07233679]
[1767713691468,0.74626706,3288.4,3287.4,0.03041917]
[1767713691962,0.74626706,3288.4,3287.3,1.32794137]
[1767713692168,1.38082958,3288.3,3287.3,0.791]
[1767713692348,0.74626706,3288.4,3287.3,0.791]
[1767713692349,1.59353924,3288.2,3287.3,0.791]
[1767713692542,4.63476977,3288.2,3287.3,0.791]
[1767713692739,7.6760003,3288.2,3287.3,0.791]
[1767713693545,1.38082958,3288.1,3287.3,0.001]
[1767713694466,6.29517072,3288.2,3287.3,0.001]
[1767713694467,1.38082958,3287.9,3287.3,0.001]
[1767713694655,6.08272506,3288.0,3287.3,0.001]
[1767713694656,2.12718504,3287.8,3287.3,0.001]
[1767713695980,0.74626706,3288.4,3287.3,0.001]
[1767713695981,1.38082958,3288.5,3287.3,2.11794137]
[1767713696144,3.04065383,3288.8,3287.3,2.11794137]
[1767713696145,2.17482958,3288.9,3287.4,1.36958361]
[1767713696350,2.17482958,3288.9,3287.5,1.32694137]
[1767713696663,3.04029362,3289.2,3287.8,1.32694137]
[1767713696963,0.44231232,3289.1,3287.9,2.80930017]
[1767713697166,4.42299563,3289.3,3287.9,2.80930017]
[1767713697462,7.46316168,3289.3,3287.9,2.80930017]
[1767713697661,7.46316168,3289.3,3288.0,1.27827802]
[1767713697662,4.42299563,3289.3,3288.0,1.27827802]
[1767713698472,1.38282958,3289.3,3288.0,1.27827802]
[1767713698637,1.38282958,3289.3,3288.1,7.6417481]
[1767713698961,4.42299802,3289.3,3288.1,7.6417481]
[1767713699334,1.38282958,3289.3,3288.1,7.6417481]
[1767713699540,0.002,3289.3,3288.2,1.27827802]
[1767713700548,0.002,3289.3,3288.4,1.27827802]
[1767713700760,0.002,3289.3,3288.5,0.73604481]
[1767713701742,0.20628572,3289.6,3288.6,1.32891025]
[1767713702080,3.04162373,3289.9,3288.6,1.32891025]
[1767713702377,6.08124746,3289.9,3288.6,1.32891025]
[1767713702545,0.002,3289.9,3288.7,1.32891025]
[1767713702746,0.002,3289.9,3288.8,1.76588086]
[1767713703067,0.002,3289.9,3288.9,0.79]
[1767713703464,3.03906287,3290.5,3289.3,1.32891025]
[1767713703664,3.03895946,3290.6,3289.4,2.11891025]
[1767713703993,3.04094333,3290.7,3289.5,1.54080127]
[1767713704142,6.07988666,3290.7,3289.5,1.54080127]
[1767713704347,6.07988666,3290.7,3289.5,0.21189102]
[1767713704348,1.38183302,3290.6,3289.5,0.21189102]
[1767713704678,9.11882999,3290.7,3288.8,1.76588086]
[1767713704679,1.38183302,3290.4,3288.8,1.76588086]
[1767713704880,1.38183302,3290.4,3288.3,1.32891025]
[1767713705081,1.38183302,3290.4,3288.5,0.79]
[1767713706361,1.38183302,3290.4,3287.9,1.32891025]
[1767713706560,1.38183302,3290.2,3288.0,0.789]
[1767713707256,1.38183302,3290.2,3288.1,1.35932295]
[1767713707474,1.38183302,3290.2,3288.3,1.34113332]
[1767713707684,1.38183302,3290.2,3288.5,1.32891025]
[1767713707991,1.38183302,3290.2,3288.7,1.32891025]
[1767713708287,3.03905181,3290.5,3288.7,1.34113332]
[1767713708450,6.07810362,3290.5,3289.0,1.32891025]
[1767713708883,9.11860133,3290.7,3289.2,1.32891025]
[1767713709084,0.60801036,3290.5,3289.3,0.789]
[1767713709580,6.07973422,3290.7,3289.3,0.789]
[1767713709890,6.07973422,3290.7,3288.2,1.54374254]
[1767713709891,1.38383302,3290.1,3288.2,1.54374254]
[1767713710051,1.38183302,3289.9,3288.3,0.789]
[1767713710250,1.38183302,3289.9,3288.2,1.54374254]
[1767713710251,1.38183302,3289.9,3288.2,0.21483229]
[1767713710472,1.38183302,3289.7,3288.3,0.789]
[1767713710983,6.07976652,3289.6,3288.3,0.789]
[1767713711172,6.07976652,3289.6,3288.3,3.83004983]
[1767713711373,6.07976652,3289.6,3288.3,3.86046068]
[1767713711673,0.002,3290.1,3288.4,1.32891025]
[1767713711861,6.07908882,3290.0,3288.6,1.32891025]
[1767713712186,9.11866397,3290.0,3288.5,0.8534546]
[1767713712398,1.38183302,3289.9,3288.1,5.17113332]
[1767713712561,1.38183302,3289.9,3288.2,0.789]
[1767713712751,1.38183302,3289.9,3287.7,1.32991025]
[1767713712951,1.38183302,3289.7,3287.8,0.21199103]
[1767713713156,1.38183302,3289.5,3287.8,0.21199103]
[1767713714884,1.38183302,3289.5,3287.7,0.001]
[1767713715188,1.38183302,3289.3,3287.7,0.001]
[1767713715383,1.38183302,3289.3,3287.7,1.32991025]
[1767713715586,1.38183302,3289.3,3287.8,0.03041547]
[1767713715587,0.794,3289.2,3287.8,0.03041547]
[1767713716083,2.17583302,3289.2,3287.7,0.001]
[1767713716267,1.59941632,3289.1,3287.7,0.001]
[1767713716468,0.2175833,3289.1,3287.7,0.001]
[1767713716669,0.794,3289.2,3287.8,0.03041547]
[1767713716865,0.794,3289.2,3287.7,0.001]
[1767713717072,10.50286916,3289.1,3287.7,0.001]
[1767713717786,1.38183302,3289.0,3287.7,0.001]
[1767713718868,9.12103614,3289.1,3287.7,0.001]
[1767713719069,6.08124542,3288.8,3287.7,0.001]
[1767713719393,3.04062271,3288.8,3287.7,0.001]
[1767713719555,6.08124542,3288.8,3287.7,0.001]
[1767713720870,9.12186813,3288.8,3287.7,0.001]
[1767713721188,9.12186813,3288.8,3287.3,0.001]
[1767713721189,1.38183302,3288.7,3287.3,0.001]
[1767713721358,1.38183302,3288.6,3287.3,0.001]
[1767713721985,0.794,3288.5,3287.3,0.001]
[1767713722188,2.17583302,3288.5,3287.3,0.001]
[1767713722390,0.794,3288.5,3288.0,0.001]
[1767713723091,6.08198514,3288.4,3288.0,0.001]
[1767713723256,0.67320256,3288.3,3288.0,0.001]
[1767713723694,0.67320256,3288.3,3287.3,0.001]
[1767713725104,6.08235508,3288.2,3287.3,0.001]
[1767713725607,3.04117754,3288.2,3287.3,0.001]
[1767713725967,6.08235508,3288.2,3287.3,0.001]
[1767713726213,0.67555576,3288.1,3287.3,0.001]
[1767713726698,0.67555576,3288.1,3285.8,0.001]
[1767713726699,0.794,3288.0,3285.8,0.001]
[1767713726873,1.38183302,3287.9,3286.2,1.32891025]
[1767713727072,1.59941632,3287.8,3286.3,0.43719763]
[1767713727271,6.0832801,3287.7,3286.3,3.48012894]
[1767713727473,6.0832801,3287.7,3286.3,4.80903919]
[1767713727674,3.04164005,3287.7,3286.4,1.35933868]
[1767713727968,3.04164005,3287.7,3286.3,3.48012894]
[1767713727969,1.38183302,3288.7,3286.6,1.32891025]
[1767713728172,1.38183302,3288.7,3286.5,0.51437426]
[1767713728173,0.794,3288.6,3286.7,1.32891025]
[1767713728374,0.794,3288.6,3286.9,1.32891025]
[1767713728375,6.08161526,3288.6,3286.9,1.32891025]
[1767713728615,0.794,3288.7,3287.1,1.32891025]
[1767713728912,1.38183302,3289.2,3286.8,0.79]
[1767713728913,0.794,3288.9,3287.3,1.32891025]
[1767713729119,1.39405609,3288.8,3286.9,0.0304238]
[1767713729402,1.39405609,3288.8,3286.4,1.32891025]
[1767713729403,1.38183302,3288.6,3286.4,1.32891025]
[1767713730990,1.38183302,3288.6,3286.5,1.35933775]
[1767713731206,9.12297771,3288.4,3286.7,1.32891025]
[1767713731713,9.12297771,3288.4,3286.8,1.38595429]
[1767713731914,0.99169777,3288.3,3286.8,1.35552957]
[1767713732319,0.99169777,3288.3,3287.0,1.35552957]
[1767713732486,3.04099257,3288.4,3287.0,1.35552957]
[1767713732812,9.12297771,3288.4,3287.0,1.35552957]
[1767713733403,9.12297771,3288.4,3286.2,0.01222307]
[1767713733404,1.40298438,3288.3,3286.2,1.35552957]
[1767713734510,1.40298438,3288.3,3287.1,0.001]
[1767713734704,1.39076131,3288.1,3287.1,0.001]
[1767713734908,1.39076131,3287.9,3286.2,1.35552957]
[1767713735413,1.39076131,3287.7,3285.8,0.82143398]
[1767713735620,1.39076131,3287.7,3285.8,0.001]
[1767713736613,0.01222307,3287.6,3285.8,0.001]
[1767713736813,1.39076131,3287.4,3285.8,0.001]
[1767713737017,0.21847613,3287.3,3285.8,0.001]
[1767713737711,12.1684108,3287.2,3285.8,0.001]
[1767713737913,9.1263081,3287.2,3285.8,0.001]
[1767713738295,1.39076131,3287.1,3285.8,0.001]
[1767713738611,1.39076131,3287.1,3285.0,1.35552957]
[1767713738612,1.39076131,3286.9,3285.0,1.35552957]
[1767713738816,1.39076131,3286.9,3285.1,0.43997255]
[1767713739001,1.39076131,3286.9,3285.0,1.35552957]
[1767713739720,1.39076131,3286.7,3285.0,1.35552957]
[1767713740013,1.39076131,3286.7,3284.8,0.79]
[1767713740181,1.39076131,3286.7,3284.7,0.001]
[1767713740182,1.40298438,3286.7,3284.7,0.001]
[1767713740587,1.39076131,3286.4,3284.7,0.001]
[1767713740783,1.39076131,3286.2,3284.7,0.001]
[1767713741013,0.21847613,3286.1,3284.7,0.001]
[1767713741316,1.60923744,3286.1,3284.7,0.001]
[1767713741521,1.39076131,3286.1,3284.7,0.001]
[1767713741721,6.42911949,3285.9,3283.3,1.51489662]
[1767713741897,1.39076131,3285.5,3283.3,1.51489662]
[1767713742099,1.39076131,3285.5,3283.4,0.03045623]
[1767713742421,2.18476131,3285.4,3283.6,1.35552957]
[1767713742589,0.21847613,3285.3,3283.6,1.35552957]
[1767713742789,0.21847613,3285.3,3283.7,1.38598302]
[1767713743001,0.794,3285.2,3283.8,1.35552957]
[1767713743620,3.04404736,3285.1,3283.8,1.35552957]
[1767713743805,0.21847613,3285.3,3283.8,1.35552957]
[1767713743806,0.21847613,3285.3,3283.9,1.35552957]
[1767713744006,0.794,3285.4,3283.9,1.38598116]
[1767713745117,6.08686398,3285.8,3283.9,1.38598116]
[1767713745118,0.794,3285.6,3283.9,1.38598116]
[1767713745629,1.39076131,3286.3,3284.1,1.35552957]
[1767713745814,6.08550128,3286.5,3284.3,1.35552957]
[1767713745996,0.794,3286.2,3284.5,1.35552957]
[1767713746519,0.794,3286.1,3284.7,1.35552957]
[1767713746923,1.39076131,3286.0,3284.1,1.35652957]
[1767713747123,1.39076131,3285.8,3284.1,0.001]
[1767713747711,1.39076131,3285.6,3284.1,0.001]
[1767713747929,0.794,3285.5,3284.1,1.35652957]
[1767713748634,2.18476131,3285.5,3284.1,0.001]
[1767713749510,6.08698298,3285.7,3284.1,1.35652957]
[1767713749712,6.08735352,3285.5,3284.1,4.40143271]
[1767713750026,6.08735352,3285.5,3284.1,4.40148427]
[1767713750930,3.04367676,3285.5,3284.1,4.40148427]
[1767713751099,3.04367676,3285.5,3284.1,0.001]
[1767713751100,1.39076131,3285.4,3284.1,0.001]
[1767713751300,1.39076131,3285.3,3284.1,0.001]
[1767713751915,1.39076131,3285.1,3284.1,0.001]
[1767713752215,1.39076131,3284.9,3283.3,0.001]
[1767713752528,0.794,3285.0,3283.3,0.001]
[1767713752529,1.39076131,3284.7,3283.3,0.001]
[1767713753999,7.47978279,3284.6,3283.3,0.001]
[1767713755023,1.39076131,3284.5,3283.3,0.001]
[1767713755222,1.39076131,3284.3,3283.3,0.001]
[1767713755423,1.60933744,3284.2,3283.3,0.001]
[1767713755940,6.08994852,3284.1,3283.3,0.001]
[1767713756741,7.46230406,3284.1,3283.3,0.001]
[1767713756942,6.08994852,3284.1,3283.3,0.001]
[1767713760045,6.08994852,3284.1,3283.6,0.001]
[1767713760338,1.42585247,3284.0,3283.6,0.001]
[1767713760838,0.63085247,3284.0,3283.6,0.001]
[1767713761011,0.795,3283.9,3283.6,0.001]
[1767713761212,1.33489147,3284.9,3283.6,0.001]
[1767713761410,1.33489147,3284.7,3283.6,0.001]
[1767713761642,1.34711454,3284.7,3282.7,1.2506344]
[1767713761822,1.33489147,3284.5,3282.7,1.2506344]
[1767713762027,1.33489147,3284.3,3282.7,1.2506344]
[1767713762350,0.795,3284.2,3282.7,1.2506344]
[1767713762652,0.795,3284.1,3282.8,1.2506344]
[1767713762945,0.795,3284.1,3282.9,1.2506344]
[1767713763165,4.47648278,3284.6,3283.1,1.2506344]
[1767713763338,4.47648278,3284.6,3283.2,0.03045808]
[1767713763339,0.795,3284.2,3283.2,0.03045808]
[1767713763740,0.795,3284.2,3282.9,0.03046087]
[1767713764043,0.795,3284.2,3282.8,0.42968866]
[1767713764225,1.33489147,3284.9,3282.7,1.2506344]
[1767713764425,1.33489147,3284.9,3282.2,0.80222307]
[1767713764426,6.88365074,3284.8,3282.9,1.2506344]
[1767713764626,6.88365074,3284.8,3283.1,1.2506344]
[1767713765221,0.795,3284.7,3283.1,1.2506344]
[1767713765418,1.33489147,3284.6,3283.1,1.2506344]
[1767713765645,1.54788062,3284.5,3282.7,4.29689404]
[1767713765852,1.54788062,3284.5,3282.9,1.2506344]
[1767713766352,6.08939226,3284.4,3282.9,1.2506344]
[1767713766551,9.13408839,3284.4,3282.9,1.2506344]
[1767713766755,1.33489147,3284.3,3282.7,3.04626117]
[1767713766956,2.40308837,3284.3,3282.8,0.30767248]
[1767713767458,6.08939226,3284.4,3283.0,1.2506344]
[1767713767656,3.04469613,3284.4,3283.0,1.2506344]
[1767713767834,6.88439226,3284.4,3283.0,1.2506344]
[1767713768337,0.795,3284.3,3283.0,1.2506344]
[1767713769232,0.795,3284.3,3282.5,4.29703036]
[1767713769233,1.33489147,3284.2,3282.5,4.29703036]
[1767713769437,1.33489147,3284.2,3281.8,0.01222307]
[1767713769438,1.33489147,3284.2,3282.1,1.2506344]
[1767713769439,1.33489147,3284.1,3282.1,1.2506344]
[1767713770263,9.13631379,3283.6,3282.1,1.2506344]
[1767713770554,0.795,3283.5,3282.1,1.2506344]
[1767713770741,0.98722731,3283.4,3282.1,1.2506344]
[1767713770940,0.98722731,3283.4,3281.7,1.2506344]
[1767713771538,1.33489147,3283.3,3281.7,1.2506344]
[1767713771731,1.34711454,3283.3,3281.7,1.2506344]
[1767713772253,6.09161792,3283.2,3281.7,1.2506344]
[1767713772452,0.38376768,3283.1,3281.7,1.68043489]
[1767713773244,0.38376768,3283.1,3281.7,1.2506344]
[1767713774256,6.09198902,3283.0,3281.7,1.2506344]
[1767713774461,0.795,3282.9,3282.0,0.001]
[1767713775759,0.795,3282.9,3280.8,1.2506344]
[1767713775760,1.33489147,3282.8,3280.8,1.2506344]
[1767713775951,1.56132599,3282.7,3280.9,1.2506344]
[1767713776131,0.01222307,3282.4,3280.9,1.2506344]
[1767713776333,1.56132599,3282.7,3280.9,1.2506344]
[1767713776334,0.21421145,3282.7,3281.0,1.2506344]
[1767713776554,0.795,3282.6,3281.0,1.2506344]
[1767713776961,0.795,3282.5,3281.2,1.2506344]
[1767713777466,0.795,3282.4,3281.4,1.2506344]
[1767713777851,2.12989147,3282.4,3281.0,1.2506344]
[1767713778057,2.12989147,3282.4,3281.1,0.42985606]
[1767713778560,1.33489147,3282.9,3281.2,1.28111105]
[1767713778869,0.795,3282.5,3281.2,1.28111105]
[1767713779054,3.04618009,3282.8,3281.2,1.28111105]
[1767713779255,3.04543793,3283.6,3281.4,1.2506344]
[1767713779456,0.795,3283.5,3281.6,1.2506344]
[1767713779982,0.01222307,3284.1,3281.8,1.2506344]
[1767713779983,6.08994852,3284.1,3281.8,1.2506344]
[1767713780148,0.795,3284.0,3282.0,1.2506344]
[1767713780463,3.04525245,3283.8,3282.4,1.2506344]
[1767713780670,3.04525245,3283.8,3282.4,1.28109991]
[1767713781232,6.0905049,3283.8,3282.4,1.28109991]
[1767713781432,6.0905049,3283.8,3282.2,3.04670755]
[1767713781433,1.33489147,3283.7,3282.2,3.04670755]
[1767713781737,1.33489147,3283.7,3281.9,1.2506344]
[1767713781738,1.34711454,3283.7,3281.9,1.2506344]
[1767713781932,1.04828719,3283.6,3282.1,1.2506344]
[1767713782166,0.795,3283.5,3282.1,1.2506344]
[1767713782462,6.09124686,3283.4,3282.1,1.2506344]
[1767713784564,6.09124686,3283.4,3281.4,0.791]
[1767713784565,0.01222307,3283.1,3281.5,1.2506344]
[1767713784888,1.34711454,3283.1,3281.5,1.2506344]
[1767713785047,1.34711454,3283.1,3281.5,1.45479784]
[1767713785241,1.34711454,3282.9,3281.5,1.2506344]
[1767713785468,0.795,3282.8,3281.5,1.2506344]
[1767713785971,0.795,3282.8,3281.0,4.29846319]
[1767713785972,1.33489147,3282.7,3281.0,4.29846319]
[1767713786174,1.34711454,3282.7,3281.0,1.2506344]
[1767713786484,1.34711454,3282.7,3280.8,0.791]
[1767713786485,1.33489147,3282.3,3280.8,0.791]
[1767713786653,0.795,3282.2,3280.9,1.2506344]
[1767713786973,3.0464793,3282.5,3281.0,1.2506344]
[1767713787142,0.795,3282.4,3281.2,1.2506344]
[1767713787342,0.795,3282.4,3281.8,0.001]
[1767713787543,0.795,3282.4,3280.8,0.791]
[1767713787766,1.33489147,3282.3,3280.8,3.83902162]
[1767713787943,1.00798915,3282.2,3280.9,0.38695029]
[1767713788340,1.00798915,3282.2,3281.0,0.03047851]
[1767713788543,3.04645849,3282.5,3281.1,1.2506344]
[1767713788849,0.795,3282.4,3281.1,1.2506344]
[1767713790579,3.0456523,3283.4,3281.3,1.2506344]
[1767713790878,1.34911454,3283.5,3281.2,6.12580761]
[1767713790879,9.93242688,3283.2,3281.5,1.2506344]
[1767713791046,9.93242688,3283.2,3281.5,1.45784532]
[1767713791047,0.01222307,3282.9,3281.5,1.45784532]
[1767713792081,0.01222307,3282.2,3280.5,1.3315352]
[1767713792278,0.01222307,3282.0,3280.5,1.3315352]
[1767713792467,6.09403088,3281.9,3280.5,1.3315352]
[1767713792663,6.09403088,3281.9,3280.6,1.3315352]
[1767713792864,0.6106254,3281.8,3280.6,1.3315352]
[1767713793068,0.6106254,3281.8,3280.7,0.03048129]
[1767713793302,0.6106254,3281.8,3280.6,1.3315352]
[1767713793775,1.33943733,3282.9,3280.8,1.3315352]
[1767713793962,1.33943733,3282.9,3280.7,0.82148129]
[1767713793963,0.795,3282.4,3281.0,1.3315352]
[1767713794180,0.795,3282.4,3281.2,1.3315352]
[1767713794351,0.795,3282.4,3281.3,1.36201092]
[1767713794555,3.84161505,3282.4,3281.3,1.36201092]
[1767713794767,3.84161505,3282.4,3281.4,1.3315352]
[1767713794768,0.68881037,3282.3,3281.4,1.3315352]
[1767713794969,0.68881037,3282.3,3280.9,1.3315352]
[1767713795360,0.70103344,3282.3,3280.9,1.3315352]
[1767713796079,2.0282477,3282.3,3280.2,1.3315352]
[1767713796386,0.01222307,3282.1,3280.5,1.3315352]
[1767713796586,9.1407678,3282.0,3280.6,0.43799203]
[1767713796757,0.01222307,3281.9,3280.5,1.3315352]
[1767713796961,0.795,3281.8,3280.5,1.3315352]
[1767713797346,0.795,3281.8,3280.0,5.0]
[1767713797347,0.01222307,3281.1,3280.0,5.0]
[1767713797548,0.795,3281.0,3280.0,5.0]
[1767713797785,0.795,3281.0,3280.1,0.5]
[1767713798078,0.795,3281.0,3280.0,5.0]
[1767713798276,0.795,3281.0,3278.8,3.04988754]
[1767713798277,1.33943733,3280.7,3278.8,3.04988754]
[1767713798598,9.14522619,3280.4,3278.6,1.36203602]
[1767713798874,1.72174569,3280.3,3278.7,0.2153036]
[1767713799082,0.01222307,3280.1,3278.7,0.2153036]
[1767713799282,0.01222307,3280.1,3277.8,3.05079941]
[1767713799283,0.01222307,3280.1,3277.3,1.3315352]
[1767713799284,0.01222307,3279.3,3277.3,1.3315352]
[1767713799484,0.01222307,3278.8,3277.3,1.3315352]
[1767713799705,0.01222307,3278.8,3275.8,3.05264397]
[1767713799706,0.01222307,3278.5,3277.2,0.15852944]
[1767713799865,1.32721426,3278.7,3275.6,6.16816083]
[1767713799866,0.29836493,3279.7,3277.4,1.3315352]
[1767713800066,0.91452262,3280.3,3277.6,1.34375827]
[1767713800263,0.795,3279.8,3277.8,1.34375827]
[1767713800483,3.04905936,3279.7,3278.1,6.10109514]
[1767713800697,6.09811872,3279.7,3278.2,0.03050454]
[1767713800996,6.09811872,3279.7,3278.1,3.05054757]
[1767713800997,6.09811872,3279.7,3278.3,0.30810521]
[1767713801290,0.795,3279.8,3278.3,0.30810521]
[1767713801291,3.84487344,3279.9,3278.3,1.63964041]
[1767713801594,6.89374688,3279.9,3278.3,1.63964041]
[1767713801799,8.22096114,3279.9,3278.3,0.30810521]
[1767713802001,2.03095309,3279.8,3278.3,0.30810521]
[1767713802173,2.03095309,3279.8,3278.0,3.05062496]
[1767713802373,0.70373883,3279.8,3278.1,7.46313581]
[1767713802589,6.89428054,3279.7,3278.1,4.38208277]
[1767713802776,3.04914027,3279.7,3278.1,4.41258824]
[1767713802976,6.09828054,3279.7,3278.1,4.38208277]
[1767713803182,6.09828054,3279.7,3278.0,3.05062507]
[1767713803183,1.32721426,3279.6,3278.0,3.05062507]
[1767713803502,1.32721426,3279.6,3277.7,0.03050919]
[1767713803805,1.32721426,3279.6,3277.6,1.3315352]
[1767713803806,1.04746351,3279.5,3278.1,6.10108883]
[1767713804004,0.796,3279.4,3278.1,6.10108883]
[1767713804169,4.37599474,3280.0,3278.2,1.3315352]
[1767713804377,1.32721426,3279.8,3277.7,1.3315352]
[1767713804683,7.42570488,3279.5,3277.7,4.38239636]
[1767713805001,7.42570488,3279.5,3277.7,4.38245]
[1767713805368,7.42570488,3279.5,3277.4,3.05119085]
[1767713805369,1.32721426,3279.4,3277.4,3.05119085]
[1767713805567,1.32721426,3279.2,3277.2,1.3315352]
[1767713805802,1.32721426,3279.2,3277.4,3.05116655]
[1767713805993,1.32721426,3279.0,3276.7,2.1225352]
[1767713806181,1.33943733,3279.0,3276.7,3.84282568]